[Event "European School-ch 2019"]
[Site "Mamaia"]
[Date "2019.06.04"]
[Round "5.23"]
[White "Celik, Hasan Huseyin"]
[Black "Saioc, David"]
[Result "1-0"]
[ECO "C17"]
[WhiteElo "1727"]
[BlackElo "1744"]
[Annotator "NA RC"]
[PlyCount "101"]
[EventDate "2019.05.31"]
[EventType "swiss"]
[EventCountry "ROU"]
[SourceTitle "playchess.com"]
[Source "ChessBase"]
[SourceQuality "1"]
[TimeControl "40/5400+30:1800+30"]

1. e4 {[%emt 0:00:00]} e6 {[%emt 0:00:00]} 2. d4 {[%emt 0:00:00]} d5 {[%emt 0:00:00]} 3. Nc3 {[%emt 0:00:00]} Bb4 {[%emt 0:00:00]} 4. e5 {[%emt 0:00:00]} c5 {[%emt 0:00:00]} 5. Bd2 {[%emt 0:00:00]} cxd4 {[%emt 0:03:32]} 6. Nb5 {[%emt 0:00:00]} Be7 {[%emt 0:01:57]} 7. f4 {[%emt 0:03:43]} Nh6 {[%emt 0:00:42]} 8. Nxd4 {[%emt 0:20:15]} O-O {[%emt 0:04:09]} 9. Ngf3 {[%emt 0:00:12]} Nc6 {[%emt 0:02:48]} 10. c3 {[%emt 0:01:52]} f6 {[%emt 0:04:29]} 11. Bd3 f5 {[%emt 0:03:38]} 12. Qe2 {[%emt 0:11:12]} a6 {[%emt 0:11:24]} 13. O-O-O {[%emt 0:06:46]} Bd7 {[%emt 0:07:16]} 14. h3 {[%emt 0:00:53]} b5 {[%emt 0:02:31]} 15. Nxc6 Bxc6 {[%emt 0:00:47]} 16. Nd4 {[%emt 0:01:09]} Bd7 {[%emt 0:00:08]} 17. g4 {[%emt 0:00:12]} Qa5 {[%emt 0:07:44]} 18. gxf5 {[%emt 0:00:15]} Nxf5 {[%emt 0:01:00]} 19. Nxf5 {[%emt 0:01:05]} exf5 {[%emt 0:00:07]} 20. Kb1 {[%emt 0:08:28]} Qb6 {[%emt 0:11:04]} 21. Be3 {[%emt 0:00:13]} Qb7 {[%emt 0:00:27]} 22. Bd4 {[%emt 0:00:10]} Be6 {[%emt 0:00:37]} 23. Rhg1 {[%emt 0:03:48]} Rac8 {[%emt 0:06:46]} 24. Qh5 {[%emt 0:00:26]} Bc5 {[%emt 0:01:51]} 25. Qh6 {[%emt 0:01:27]} Bxd4 {[%emt 0:04:28]} 26. cxd4 {[%emt 0:01:32]} Kh8 {[%emt 0:01:01]} 27. Qh4 {[%emt 0:00:33]} b4 {[%emt 0:04:43]} 28. Rc1 {[%emt 0:01:03]} Qb6 {[%emt 0:03:14]} 29. Qf2 {[%emt 0:02:55]} Rcd8 {[%emt 0:02:34]} 30. Rc5 {[%emt 0:00:35]} Qb7 {[%emt 0:04:09]} 31. Rgc1 {[%emt 0:00:25]} Qf7 {[%emt 0:02:58]} 32. Qg2 {[%emt 0:01:51]} Ra8 {[%emt 0:06:14]} 33. Rc7 {[%emt 0:00:18]} Bd7 {[%emt 0:01:56]} 34. R1c5 {[%emt 0:03:31]} Qe6 {[%emt 0:01:47]} 35. Qxd5 {[%emt 0:00:38]} Qg6 {[%emt 0:00:58]} 36. Rxd7 {[%emt 0:01:34]} Qg1+ {[%emt 0:00:15]} 37. Rc1 {[%emt 0:00:10]} Qg3 {[%emt 0:00:14]} 38. Bxf5 {[%emt 0:01:19]} Qxf4 {[%emt 0:00:41]} 39. Bd3 {[%emt 0:03:18]} Qe3 {[%emt 0:00:35]} 40. Qe4 {[%emt 0:00:00]} Qh6 {[%emt 0:00:00]} 41. e6 {[%emt 0:01:02]} Rac8 {[%emt 0:00:44]} 42. Rxc8 {[%emt 0:02:13]} Rxc8 {[%emt 0:00:06]} 43. Qxh7+ {[%emt 0:00:03]} Qxh7 {[%emt 0:00:14]} 44. Bxh7 {[%emt 0:00:04]} Kxh7 {[%emt 0:00:25]} 45. e7 {[%emt 0:00:05]} Re8 {[%emt 0:00:05]} 46. d5 {[%emt 0:00:03]} Kg6 {[%emt 0:00:09]} 47. d6 {[%emt 0:00:03]} Kf7 {[%emt 0:00:04]} 48. Rd8 {[%emt 0:00:03]} g5 {[%emt 0:00:09]} 49. Kc2 {[%emt 0:00:03]} Rxe7 {[%emt 0:00:18]} 50. dxe7 {[%emt 0:00:05]} Kxe7 {[%emt 0:00:05]} 51. Ra8 1-0

[Event "European School-ch 2019"]
[Site "Mamaia"]
[Date "2019.06.04"]
[Round "5.24"]
[White "Cosac, Robert-Mihai"]
[Black "Gusev, Mikhail"]
[Result "0-1"]
[ECO "A05"]
[WhiteElo "1795"]
[BlackElo "1463"]
[Annotator "NA RC"]
[PlyCount "94"]
[EventDate "2019.05.31"]
[EventType "swiss"]
[EventCountry "ROU"]
[SourceTitle "playchess.com"]
[Source "ChessBase"]
[SourceQuality "1"]
[TimeControl "40/5400+30:1800+30"]

1. Nf3 {[%emt 0:00:00]} Nf6 {[%emt 0:00:00]} 2. e3 {[%emt 0:00:00]} g6 {[%emt 0:00:07]} 3. b3 {[%emt 0:01:17]} Bg7 {[%emt 0:00:10]} 4. Bb2 {[%emt 0:00:32]} O-O {[%emt 0:00:35]} 5. Be2 {[%emt 0:00:44]} d6 {[%emt 0:00:20]} 6. d4 {[%emt 0:01:18]} Nfd7 {[%emt 0:03:07]} 7. O-O {[%emt 0:02:02]} Nc6 {[%emt 0:00:19]} 8. Nbd2 {[%emt 0:04:22]} e5 {[%emt 0:00:49]} 9. d5 {[%emt 0:04:42]} Ne7 {[%emt 0:00:26]} 10. e4 {[%emt 0:02:46]} h6 {[%emt 0:04:22]} 11. c4 {[%emt 0:03:55]} f5 {[%emt 0:00:59]} 12. Qc2 {[%emt 0:03:23]} Nf6 {[%emt 0:01:08]} 13. Bd3 {[%emt 0:04:08]} f4 {[%emt 0:00:41]} 14. c5 {[%emt 0:02:22]} g5 {[%emt 0:02:31]} 15. cxd6 {[%emt 0:00:47]} cxd6 {[%emt 0:00:24]} 16. Nc4 {[%emt 0:06:54]} Ng6 {[%emt 0:01:26]} 17. Ba3 {[%emt 0:02:57]} Ne8 {[%emt 0:01:05]} 18. Ne1 {[%emt 0:04:54]} g4 {[%emt 0:01:47]} 19. f3 {[%emt 0:01:38]} b5 {[%emt 0:02:24]} 20. Nxd6 {[%emt 0:08:40]} Nxd6 {[%emt 0:11:28]} 21. Qc6 {[%emt 0:00:23]} g3 {[%emt 0:02:24]} 22. Qxd6 {[%emt 0:07:17]} Qh4 {[%emt 0:00:13]} 23. h3 {[%emt 0:00:12]} Kh7 {[%emt 0:14:35]} 24. Qc6 {[%emt 0:05:07]} Rg8 {[%emt 0:03:27]} 25. Qc2 {[%emt 0:02:08]} Bd7 {[%emt 0:01:29]} 26. Qe2 {[%emt 0:01:19]} a6 {[%emt 0:01:18]} 27. Rc1 {[%emt 0:03:28]} Rgc8 {[%emt 0:03:24]} 28. Rc5 {[%emt 0:02:24]} Nh8 {[%emt 0:01:13]} 29. Nc2 {[%emt 0:04:36]} Nf7 {[%emt 0:00:14]} 30. Nd4 {[%emt 0:04:19]} Rxc5 {[%emt 0:02:17]} 31. Bxc5 {[%emt 0:00:07]} Rc8 {[%emt 0:00:30]} 32. Bb4 {[%emt 0:00:58]} Ng5 {[%emt 0:06:06]} 33. Nf5 {[%emt 0:01:11]} Bxf5 {[%emt 0:00:07]} 34. exf5 {[%emt 0:00:06]} e4 {[%emt 0:00:14]} 35. f6 {[%emt 0:01:17]} Bxf6 {[%emt 0:00:17]} 36. Bxe4+ {[%emt 0:00:12]} Kg7 {[%emt 0:01:14]} 37. Bf5 {[%emt 0:01:02]} Rd8 {[%emt 0:02:57]} 38. d6 {[%emt 0:01:04]} a5 {[%emt 0:01:15]} 39. Bc5 {[%emt 0:01:03]} Qh5 {[%emt 0:07:07]} 40. Qxb5 {[%emt 0:00:00]} Nxf3+ {[%emt 0:00:00]} 41. Rxf3 {[%emt 0:06:24]} Qxf5 {[%emt 0:01:39]} 42. Qc4 {[%emt 0:02:50]} Rc8 {[%emt 0:01:36]} 43. Rxf4 {[%emt 0:01:29]} Qxc5+ {[%emt 0:00:02]} 44. Qxc5 {[%emt 0:00:07]} Rxc5 {[%emt 0:00:03]} 45. Rg4+ {[%emt 0:00:05]} Kf7 {[%emt 0:00:11]} 46. Rxg3 {[%emt 0:00:06]} Rc1+ {[%emt 0:00:06]} 47. Kf2 {[%emt 0:00:28]} Bh4 {[%emt 0:00:01]} 0-1

[Event "European School-ch 2019"]
[Site "Mamaia"]
[Date "2019.06.04"]
[Round "5.25"]
[White "Kolesov, Gordey"]
[Black "Kotolashvili, Davit"]
[Result "0-1"]
[ECO "D31"]
[WhiteElo "1745"]
[BlackElo "1374"]
[Annotator "NA"]
[PlyCount "154"]
[EventDate "2019.05.31"]
[EventType "swiss"]
[EventCountry "ROU"]
[SourceTitle "playchess.com"]
[Source "ChessBase"]
[SourceQuality "1"]
[TimeControl "40/5400+30:1800+30"]

1. d4 {[%emt 0:00:00]} d5 {[%emt 0:00:00]} 2. c4 {[%emt 0:00:00]} e6 {[%emt 0:00:00]} 3. Nc3 {[%emt 0:00:00]} Be7 {[%emt 0:00:00]} 4. cxd5 {[%emt 0:00:00]} exd5 {[%emt 0:00:00]} 5. Bf4 {[%emt 0:00:00]} c6 {[%emt 0:00:00]} 6. Qc2 {[%emt 0:00:39]} Nf6 {[%emt 0:00:59]} 7. e3 {[%emt 0:00:48]} Nbd7 {[%emt 0:00:43]} 8. h3 {[%emt 0:02:04]} O-O {[%emt 0:01:21]} 9. Bd3 {[%emt 0:00:43]} Re8 {[%emt 0:03:12]} 10. Nf3 {[%emt 0:03:39]} Nf8 {[%emt 0:01:09]} 11. Ne5 {[%emt 0:10:58]} Bd6 {[%emt 0:01:43]} 12. Bh2 {[%emt 0:07:35]} a6 {[%emt 0:13:28]} 13. O-O {[%emt 0:09:56]} N6d7 {[%emt 0:06:28]} 14. Nf3 {[%emt 0:00:23]} Bxh2+ {[%emt 0:01:08]} 15. Kxh2 {[%emt 0:02:41]} Ng6 {[%emt 0:00:42]} 16. Ne2 {[%emt 0:06:25]} Nf6 {[%emt 0:03:06]} 17. Ng3 {[%emt 0:02:14]} Qe7 {[%emt 0:04:24]} 18. Bxg6 {[%emt 0:17:36]} hxg6 {[%emt 0:00:10]} 19. Ne5 {[%emt 0:00:11]} Be6 {[%emt 0:13:25]} 20. Qc3 {[%emt 0:05:31]} Rac8 {[%emt 0:01:35]} 21. b4 {[%emt 0:01:05]} Bf5 {[%emt 0:03:01]} 22. Nxf5 {[%emt 0:06:03]} gxf5 {[%emt 0:00:06]} 23. Qc2 {[%emt 0:02:14]} Qxb4 {[%emt 0:08:22]} 24. Qxf5 {[%emt 0:00:11]} Qe7 {[%emt 0:00:25]} 25. Rfc1 {[%emt 0:08:29]} c5 {[%emt 0:03:22]} 26. g4 {[%emt 0:01:51]} Ne4 {[%emt 0:09:26]} 27. Kg2 {[%emt 0:03:32]} c4 {[%emt 0:02:51]} 28. Nd7 {[%emt 0:05:03]} Qe6 {[%emt 0:00:56]} 29. Qxe6 {[%emt 0:00:29]} Rxe6 {[%emt 0:00:06]} 30. Rab1 {[%emt 0:00:28]} b5 {[%emt 0:01:52]} 31. a4 {[%emt 0:00:45]} Rc7 {[%emt 0:08:49]} 32. Ne5 {[%emt 0:01:14]} Rb7 {[%emt 0:06:49]} 33. axb5 axb5 {[%emt 0:00:21]} 34. f3 {[%emt 0:01:20]} Nd2 {[%emt 0:01:18]} 35. Rb2 {[%emt 0:01:05]} Nb3 {[%emt 0:00:11]} 36. Re1 {[%emt 0:00:36]} Ra6 {[%emt 0:04:47]} 37. e4 {[%emt 0:00:33]} Ra3 {[%emt 0:01:06]} 38. exd5 {[%emt 0:00:44]} c3 {[%emt 0:00:26]} 39. Rf2 {[%emt 0:00:03]} Nxd4 {[%emt 0:00:25]} 40. d6 {[%emt 0:00:00]} Ra6 {[%emt 0:00:00]} 41. d7 {[%emt 0:12:14]} Rd6 {[%emt 0:02:27]} 42. Ra2 {[%emt 0:04:23]} Rb8 {[%emt 0:06:00]} 43. Ra7 {[%emt 0:06:21]} Rd8 {[%emt 0:02:09]} 44. Rc7 {[%emt 0:06:15]} b4 {[%emt 0:00:12]} 45. Ng6 {[%emt 0:04:21]} Ne6 {[%emt 0:04:22]} 46. Rxe6 {[%emt 0:00:36]} fxe6 {[%emt 0:00:28]} 47. Ne5 {[%emt 0:00:13]} R6xd7 {[%emt 0:02:10]} 48. Nxd7 {[%emt 0:00:32]} Rxd7 {[%emt 0:00:07]} 49. Rxd7 {[%emt 0:00:17]} c2 {[%emt 0:00:04]} 50. Rc7 {[%emt 0:00:59]} b3 {[%emt 0:00:04]} 51. Kg3 {[%emt 0:00:25]} b2 {[%emt 0:00:11]} 52. Rxc2 {[%emt 0:00:11]} b1=Q {[%emt 0:00:06]} 53. Re2 {[%emt 0:00:13]} Kf7 {[%emt 0:00:34]} 54. Kg2 {[%emt 0:00:17]} Qd3 {[%emt 0:00:23]} 55. Re4 {[%emt 0:00:21]} Kf6 {[%emt 0:00:23]} 56. Kf2 {[%emt 0:00:15]} e5 {[%emt 0:01:49]} 57. Kg2 {[%emt 0:00:18]} Qd2+ {[%emt 0:01:31]} 58. Kg3 {[%emt 0:00:18]} Qd1 {[%emt 0:00:15]} 59. Kg2 {[%emt 0:00:04]} g5 {[%emt 0:00:40]} 60. Kf2 {[%emt 0:01:05]} Qh1 {[%emt 0:00:46]} 61. Ke2 {[%emt 0:02:16]} Qg2+ {[%emt 0:00:19]} 62. Ke3 {[%emt 0:00:03]} Qxh3 {[%emt 0:00:40]} 63. Ra4 {[%emt 0:00:05]} Qg3 {[%emt 0:01:18]} 64. Ke2 {[%emt 0:00:58]} Qg2+ {[%emt 0:00:27]} 65. Ke3 {[%emt 0:00:03]} Qf1 {[%emt 0:01:02]} 66. Ra2 {[%emt 0:00:42]} Qg1+ {[%emt 0:00:58]} 67. Rf2 {[%emt 0:00:26]} Ke6 {[%emt 0:02:34]} 68. Ke2 {[%emt 0:00:09]} Qc1 {[%emt 0:01:28]} 69. Rf1 {[%emt 0:00:13]} Qc2+ {[%emt 0:00:15]} 70. Ke3 {[%emt 0:00:04]} Kd5 {[%emt 0:00:27]} 71. Re1 {[%emt 0:01:13]} e4 {[%emt 0:01:20]} 72. fxe4+ {[%emt 0:00:20]} Qxe4+ {[%emt 0:00:05]} 73. Kf2 {[%emt 0:00:03]} Qxg4 {[%emt 0:00:10]} 74. Re3 {[%emt 0:00:09]} Qf4+ {[%emt 0:00:09]} 75. Rf3 {[%emt 0:00:14]} Ke4 {[%emt 0:01:17]} 76. Rxf4+ {[%emt 0:00:04]} Kxf4 {[%emt 0:00:03]} 77. Kg2 {[%emt 0:00:05]} Ke5 0-1

[Event "European School-ch 2019"]
[Site "Mamaia"]
[Date "2019.06.04"]
[Round "5.26"]
[White "Krawczyk, Flawian"]
[Black "Kotelnikov, Konstantin"]
[Result "1-0"]
[ECO "C05"]
[WhiteElo "1795"]
[BlackElo "1546"]
[Annotator "NA RC"]
[PlyCount "81"]
[EventDate "2019.05.31"]
[EventType "swiss"]
[EventCountry "ROU"]
[SourceTitle "playchess.com"]
[Source "ChessBase"]
[SourceQuality "1"]
[TimeControl "40/5400+30:1800+30"]

1. e4 {[%emt 0:00:01]} e6 {[%emt 0:00:00]} 2. d4 {[%emt 0:00:06]} d5 {[%emt 0:00:00]} 3. Nd2 {[%emt 0:00:05]} Nf6 {[%emt 0:00:51]} 4. e5 {[%emt 0:01:34]} Nfd7 {[%emt 0:00:21]} 5. f4 {[%emt 0:00:06]} c5 {[%emt 0:00:37]} 6. c3 {[%emt 0:00:06]} Nc6 {[%emt 0:00:52]} 7. Ndf3 {[%emt 0:00:18]} Be7 {[%emt 0:01:43]} 8. a3 {[%emt 0:01:01]} O-O {[%emt 0:01:40]} 9. b4 {[%emt 0:01:51]} cxd4 {[%emt 0:01:39]} 10. cxd4 {[%emt 0:01:15]} f6 {[%emt 0:05:37]} 11. Bd3 {[%emt 0:01:37]} Qb6 {[%emt 0:09:40]} 12. Ne2 {[%emt 0:02:54]} a6 {[%emt 0:11:41]} 13. Qc2 {[%emt 0:03:08]} f5 {[%emt 0:06:25]} 14. Be3 {[%emt 0:04:45]} Qc7 {[%emt 0:05:22]} 15. Rc1 {[%emt 0:03:06]} Ndb8 {[%emt 0:02:08]} 16. Nd2 {[%emt 0:04:47]} b5 {[%emt 0:06:08]} 17. Nb3 {[%emt 0:05:20]} Qb6 {[%emt 0:05:24]} 18. Nc5 {[%emt 0:08:06]} a5 {[%emt 0:04:06]} 19. Qd2 {[%emt 0:01:52]} Na6 {[%emt 0:04:55]} 20. Rb1 {[%emt 0:02:26]} axb4 {[%emt 0:01:53]} 21. axb4 {[%emt 0:02:57]} Nc7 {[%emt 0:04:47]} 22. O-O {[%emt 0:01:13]} Rd8 {[%emt 0:05:14]} 23. Rfc1 {[%emt 0:02:28]} Bb7 {[%emt 0:04:01]} 24. Rc2 {[%emt 0:03:29]} Ra3 {[%emt 0:04:14]} 25. Qc1 {[%emt 0:01:41]} Rda8 {[%emt 0:06:03]} 26. Nxb7 {[%emt 0:00:24]} Nxb4 {[%emt 0:03:36]} 27. Rxc7 {[%emt 0:02:59]} Nxd3 {[%emt 0:01:21]} 28. Rc8+ {[%emt 0:01:28]} Kf7 {[%emt 0:00:58]} 29. Qc7 {[%emt 0:00:14]} Qxc7 {[%emt 0:01:55]} 30. Rxc7 {[%emt 0:00:28]} b4 {[%emt 0:00:56]} 31. Nc1 {[%emt 0:02:56]} Nxe5 {[%emt 0:00:43]} 32. dxe5 {[%emt 0:01:03]} Rxe3 {[%emt 0:00:22]} 33. Nd6+ {[%emt 0:00:12]} Kg6 {[%emt 0:00:41]} 34. Rxe7 {[%emt 0:00:08]} b3 {[%emt 0:00:33]} 35. Rxe6+ {[%emt 0:00:21]} Kh5 {[%emt 0:00:22]} 36. Nxf5 {[%emt 0:00:34]} Rc3 {[%emt 0:00:21]} 37. Nxg7+ {[%emt 0:00:17]} Kg4 {[%emt 0:00:10]} 38. Ne2 {[%emt 0:00:44]} Rc2 {[%emt 0:00:22]} 39. h3+ {[%emt 0:00:09]} Kh4 {[%emt 0:00:11]} 40. Nf5+ {[%emt 0:00:00]} Kh5 {[%emt 0:00:00]} 41. g4# 1-0

[Event "European School-ch 2019"]
[Site "Mamaia"]
[Date "2019.06.04"]
[Round "5.27"]
[White "Ciocani, Iosif"]
[Black "Gardiner, Ethan"]
[Result "1-0"]
[ECO "C26"]
[WhiteElo "1740"]
[BlackElo "1317"]
[Annotator "NA RC"]
[PlyCount "69"]
[EventDate "2019.05.31"]
[EventType "swiss"]
[EventCountry "ROU"]
[SourceTitle "playchess.com"]
[Source "ChessBase"]
[SourceQuality "1"]
[TimeControl "40/5400+30:1800+30"]

1. e4 {[%emt 0:00:00]} e5 {[%emt 0:00:00]} 2. Nc3 {[%emt 0:00:00]} Nf6 {[%emt 0:00:00]} 3. g3 {[%emt 0:00:02]} Bc5 {[%emt 0:01:55]} 4. Bg2 {[%emt 0:00:15]} d6 {[%emt 0:00:31]} 5. Nge2 {[%emt 0:00:25]} Nc6 {[%emt 0:03:02]} 6. O-O {[%emt 0:00:45]} O-O {[%emt 0:00:26]} 7. Na4 {[%emt 0:00:27]} Bb6 {[%emt 0:00:36]} 8. Nxb6 {[%emt 0:00:12]} axb6 {[%emt 0:00:12]} 9. d4 {[%emt 0:00:23]} exd4 {[%emt 0:07:59]} 10. Nxd4 {[%emt 0:00:25]} Nxd4 {[%emt 0:00:17]} 11. Qxd4 {[%emt 0:00:11]} Re8 {[%emt 0:01:47]} 12. b3 {[%emt 0:05:15]} Qe7 {[%emt 0:03:26]} 13. Re1 {[%emt 0:04:52]} Qe5 {[%emt 0:02:07]} 14. Bb2 {[%emt 0:03:47]} Qxd4 {[%emt 0:09:50]} 15. Bxd4 {[%emt 0:00:34]} Be6 {[%emt 0:00:54]} 16. c4 {[%emt 0:01:52]} Ra7 {[%emt 0:06:58]} 17. f4 {[%emt 0:06:36]} Bd7 {[%emt 0:07:28]} 18. a4 {[%emt 0:02:23]} c5 {[%emt 0:01:19]} 19. Bxf6 {[%emt 0:02:05]} gxf6 {[%emt 0:00:13]} 20. Rad1 {[%emt 0:02:26]} Bc6 {[%emt 0:06:42]} 21. Rxd6 {[%emt 0:00:52]} f5 {[%emt 0:00:33]} 22. e5 {[%emt 0:02:05]} Bxg2 {[%emt 0:00:48]} 23. Kxg2 {[%emt 0:00:01]} Re6 {[%emt 0:02:01]} 24. Red1 {[%emt 0:02:02]} Rxd6 {[%emt 0:00:37]} 25. Rxd6 {[%emt 0:00:19]} Ra6 {[%emt 0:02:54]} 26. Kf3 {[%emt 0:00:56]} Kg7 {[%emt 0:01:26]} 27. Rf6 {[%emt 0:00:11]} Ra8 {[%emt 0:00:20]} 28. Rxb6 {[%emt 0:00:28]} Rb8 {[%emt 0:00:29]} 29. Rb5 {[%emt 0:00:40]} Rd8 {[%emt 0:00:24]} 30. Rxb7 {[%emt 0:00:18]} Kf8 {[%emt 0:00:44]} 31. Ke2 {[%emt 0:00:22]} Ke8 {[%emt 0:00:25]} 32. Rb5 {[%emt 0:00:22]} Rc8 {[%emt 0:01:00]} 33. a5 {[%emt 0:00:09]} Ke7 {[%emt 0:00:11]} 34. a6 {[%emt 0:00:11]} Ra8 {[%emt 0:00:07]} 35. Rb7+ 1-0

[Event "European School-ch 2019"]
[Site "Mamaia"]
[Date "2019.06.04"]
[Round "5.28"]
[White "Tutunculer, Cagan"]
[Black "Karimli, Yusif"]
[Result "0-1"]
[ECO "A13"]
[WhiteElo "1193"]
[BlackElo "1470"]
[Annotator "NA RC"]
[PlyCount "79"]
[EventDate "2019.05.31"]
[EventType "swiss"]
[EventCountry "ROU"]
[SourceTitle "playchess.com"]
[Source "ChessBase"]
[SourceQuality "1"]
[TimeControl "40/5400+30:1800+30"]

1. c4 {[%emt 0:00:00]} e6 {[%emt 0:00:00]} 2. g3 {[%emt 0:00:00]} d5 {[%emt 0:00:08]} 3. Bg2 {[%emt 0:00:18]} Nf6 {[%emt 0:00:56]} 4. d4 {[%emt 0:00:55]} c5 {[%emt 0:02:38]} 5. cxd5 {[%emt 0:01:46]} exd5 {[%emt 0:08:42]} 6. Nf3 {[%emt 0:02:46]} Nc6 {[%emt 0:06:49]} 7. O-O {[%emt 0:02:59]} cxd4 {[%emt 0:10:31]} 8. Nxd4 {[%emt 0:01:40]} Bc5 {[%emt 0:01:41]} 9. Nb3 {[%emt 0:03:43]} Bb6 {[%emt 0:04:30]} 10. Nc3 {[%emt 0:03:40]} Be6 {[%emt 0:13:44]} 11. Bg5 {[%emt 0:05:39]} O-O {[%emt 0:05:41]} 12. Bxf6 {[%emt 0:01:39]} Qxf6 {[%emt 0:00:09]} 13. Qd2 {[%emt 0:12:41]} d4 {[%emt 0:08:06]} 14. Ne4 {[%emt 0:02:06]} Qe7 {[%emt 0:01:21]} 15. Ng5 {[%emt 0:21:48]} Bxb3 {[%emt 0:01:09]} 16. axb3 {[%emt 0:00:13]} Rfe8 {[%emt 0:01:17]} 17. Rfe1 {[%emt 0:02:20]} Bc5 {[%emt 0:00:22]} 18. Bd5 {[%emt 0:07:30]} Ne5 {[%emt 0:06:22]} 19. Qf4 {[%emt 0:05:25]} Rad8 20. Be4 {[%emt 0:00:30]} h6 21. Nf3 {[%emt 0:00:30]} Nxf3+ 22. Bxf3 {[%emt 0:00:30]} Rd7 23. Ra4 {[%emt 0:00:30]} Rc7 24. Rc4 {[%emt 0:00:30]} b5 25. Rcc1 {[%emt 0:00:30]} a5 26. Red1 {[%emt 0:00:30]} Rd8 27. Rc2 {[%emt 0:00:30]} Bb6 28. Rxc7 {[%emt 0:00:30]} Qxc7 29. Qd2 {[%emt 0:00:30]} Rd6 30. Qd3 {[%emt 0:00:30]} Qc5 31. e3 {[%emt 0:00:30]} dxe3 32. Qf1 {[%emt 0:00:30]} Rxd1 33. Qxd1 {[%emt 0:00:30]} exf2+ 34. Kg2 {[%emt 0:00:30]} g6 35. Qe2 {[%emt 0:00:30]} Qc1 36. Qf1 {[%emt 0:00:30]} Qxb2 37. Bd5 {[%emt 0:00:30]} a4 38. Kh3 {[%emt 0:00:30]} Qe5 39. Qd3 {[%emt 0:00:30]} f1=Q+ 40. Kh4 {[%emt 0:00:30]} 0-1

[Event "European School-ch 2019"]
[Site "Mamaia"]
[Date "2019.06.04"]
[Round "5.29"]
[White "Anghelescu, Teodor-Stefan"]
[Black "Durucay, Uygar"]
[Result "0-1"]
[ECO "D00"]
[WhiteElo "1266"]
[BlackElo "1575"]
[Annotator "NA RC"]
[PlyCount "68"]
[EventDate "2019.05.31"]
[EventType "swiss"]
[EventCountry "ROU"]
[SourceTitle "playchess.com"]
[Source "ChessBase"]
[SourceQuality "1"]
[TimeControl "40/5400+30:1800+30"]

1. d4 {[%emt 0:00:00]} d5 {[%emt 0:00:00]} 2. Bf4 {[%emt 0:00:00]} Nf6 {[%emt 0:00:18]} 3. e3 {[%emt 0:00:00]} c5 {[%emt 0:00:31]} 4. c3 {[%emt 0:00:11]} Nc6 {[%emt 0:00:22]} 5. Nd2 {[%emt 0:00:12]} e6 {[%emt 0:00:56]} 6. Bd3 {[%emt 0:00:40]} Bd6 {[%emt 0:01:19]} 7. Bg3 {[%emt 0:00:34]} O-O {[%emt 0:02:01]} 8. Ngf3 {[%emt 0:00:11]} b6 {[%emt 0:00:17]} 9. Ne5 {[%emt 0:00:09]} Bb7 {[%emt 0:00:27]} 10. f4 {[%emt 0:00:10]} Ne7 {[%emt 0:04:21]} 11. Qf3 {[%emt 0:00:52]} Nf5 {[%emt 0:01:31]} 12. Bf2 {[%emt 0:00:19]} Be7 {[%emt 0:05:23]} 13. g4 {[%emt 0:03:15]} Nd6 14. h4 {[%emt 0:08:42]} Nfe4 {[%emt 0:02:09]} 15. g5 {[%emt 0:01:55]} f5 {[%emt 0:03:59]} 16. h5 {[%emt 0:02:07]} cxd4 {[%emt 0:01:55]} 17. exd4 {[%emt 0:00:23]} b5 {[%emt 0:00:30]} 18. Qh3 {[%emt 0:02:47]} Nc4 {[%emt 0:00:48]} 19. Bxc4 {[%emt 0:02:22]} Nxd2 {[%emt 0:01:06]} 20. Kxd2 {[%emt 0:04:18]} dxc4 {[%emt 0:00:16]} 21. Rh2 {[%emt 0:02:41]} Qd5 {[%emt 0:02:30]} 22. Re1 {[%emt 0:01:48]} Rad8 {[%emt 0:00:48]} 23. Kc2 {[%emt 0:02:02]} b4 {[%emt 0:00:24]} 24. Ng6 {[%emt 0:00:41]} b3+ {[%emt 0:00:33]} 25. axb3 {[%emt 0:01:50]} cxb3+ {[%emt 0:00:11]} 26. Kd2 {[%emt 0:00:09]} Bd6 {[%emt 0:06:50]} 27. Bg3 {[%emt 0:06:57]} Rf7 {[%emt 0:01:25]} 28. Ne5 {[%emt 0:00:26]} Rc7 {[%emt 0:00:08]} 29. g6 {[%emt 0:00:51]} h6 {[%emt 0:02:52]} 30. Qh4 {[%emt 0:02:10]} Be7 {[%emt 0:00:39]} 31. Qh3 {[%emt 0:01:23]} Qa5 {[%emt 0:00:42]} 32. Bh4 {[%emt 0:00:58]} Rxd4+ {[%emt 0:00:44]} 33. Ke3 {[%emt 0:01:01]} Re4+ {[%emt 0:00:18]} 34. Kd2 {[%emt 0:00:04]} Qa2 {[%emt 0:00:48]} 0-1